Cogmind - Beta 13 @@@ ROGUE MODE // 2024.04.02 @ 21:32:06 Player: AEC Result: Destroyed by X-62 Marksman with Gauss Rifle Performance ------------- Evolutions (2) 1000 Regions Visited (7) 1400 Robots Destroyed (45) 225 Value Destroyed (883) 883 Prototype IDs (6) 120 Alien Tech Used (0) 0 Bonus (300) 300 TOTAL SCORE: 3928 Bonus ------- Aligned with FarCom 300 Cogmind --------- Core Integrity 0/550 Matter 95/300 Energy 74/100 System Corruption 12% Temperature Cool (0) Movement Core (50) Location -8/Materials Parts ------- > --- POWER (2) -------- (None) > --- PROPULSION (2) --- (None) > --- UTILITY (5) ------ Structural Scanner > --- WEAPON (2) ------- (None) > --- INVENTORY (5) ---- (None) Peak State ------------ > --- POWER ------------ Light Ion Engine > --- PROPULSION ------- Light Treads Advanced Treads > --- UTILITY ---------- Visual Processing Unit Cloak of Protection Splice Drone Bay > --- WEAPON ----------- Missile Launcher Plasma Cutter > --- INVENTORY -------- Rocket Launcher [Rating: 27] Favorites ----------- Power Light Ion Engine Engine Light Ion Engine Propulsion Light Treads Treads Light Treads Flight Unit VTOL Module Utility Visual Processing Unit Device Splice Drone Bay Storage Large Storage Unit Processor Visual Processing Unit Weapon Rocket Launcher Energy Gun Medium Laser Energy Cannon Particle Cannon Ballistic Gun Light Assault Rifle Launcher Rocket Launcher Special Weapon Plasma Cutter Special Melee Weapon Datajack Build | -11 -10 -10 -9 -9 -9 -8 -8 ------- Run | Yrd Mat Min Mat Min Exi Min Mat Slots Evolved 4 | . . . 2 . . . 2 Power 1 | . . . . . . . 1 Propulsion . | . . . . . . . . Utility 3 | . . . 2 . . . 1 Weapon . | . . . . . . . . Parts Attached 46 | 6 5 . 5 7 1 6 16 Power 12 | 1 . . 1 2 . 1 7 Engine 12 | 1 . . 1 2 . 1 7 Core . | . . . . . . . . Reactor . | . . . . . . . . Propulsion 8 | 2 . . 1 1 . 1 3 Treads 6 | 2 . . . 1 . 1 2 Leg . | . . . . . . . . Wheel . | . . . . . . . . Hover . | . . . . . . . . Flight 2 | . . . 1 . . . 1 Utility 9 | 1 3 . 1 2 1 . 1 Device 5 | . 1 . 1 1 1 . 1 Storage 3 | 1 2 . . . . . . Processor 1 | . . . . 1 . . . Hackware . | . . . . . . . . Protection . | . . . . . . . . Artifact . | . . . . . . . . Weapon 17 | 2 2 . 2 2 . 4 5 Energy Gun 3 | 2 . . 1 . . . . Energy Cannon 1 | . . . . 1 . . . Ballistic Gun 6 | . 1 . . . . 1 4 Ballistic Cannon . | . . . . . . . . Launcher 5 | . 1 . . 1 . 2 1 Special Weapon 1 | . . . . . . 1 . Impact Weapon . | . . . . . . . . Slashing Weapon . | . . . . . . . . Piercing Weapon . | . . . . . . . . Special Melee Weapon 1 | . . . 1 . . . . Unidentified Prototypes 3 | . . . . 2 1 . . Parts Lost 30 | . 2 4 4 . . 2 18 Power 10 | . 1 . 1 . . . 8 Propulsion 8 | . . 2 1 . . 1 4 Utility 4 | . . 1 1 . . . 2 Weapon 8 | . 1 1 1 . . 1 4 Highest Loss Streak 8 | . 2 4 4 . . 2 8 To Critical Strikes . | . . . . . . . . Average Slot Usage (%) 64 | . 97 59 33 40 68 74 49 Engine 10 | . 13 . 9 6 11 11 13 Treads 12 | . 28 23 . 9 11 13 9 Device 12 | . 12 11 1 6 13 22 8 Storage 2 | . 14 12 . . . . . Processor 7 | . . . . 6 11 11 5 Energy Gun 2 | . 15 . 7 . . . . Energy Cannon 5 | . . . . 6 11 2 . Ballistic Gun 1 | . 6 . . . . . 8 Launcher 8 | . 4 11 . 6 11 12 4 Naked Turns 117 | . . 23 24 54 . . 16 Heaviest Build 29 | 11 29 24 7 24 27 29 29 Greatest Support 42 | 40 40 40 4 20 20 42 40 Greatest Overweight (x) 6 | . . 6 1 1 1 1 6 Average Overweight (x) . | . . . . . . . 1 Largest Inventory Capacity 15 | 8 15 15 5 5 5 5 5 Average Capacity 6 | 7 14 13 5 5 5 5 5 Most Carried 5 | 2 3 3 4 5 2 5 4 Average Carried 1 | . . 3 1 1 1 1 2 Final Capacity 15 | 8 15 5 5 5 5 5 5 Final Carried 5 | . 3 3 1 1 1 5 . Class Distribution -------------------- 49% | Derelict-Mutant 46% | Mutant 4% | Scavenger-Mutant Dominant Class ---------------- Mutant | -10/Materials Mutant | -10/Mines Mutant | -9/Materials Derelict-Mutant | -9/Mines Derelict-Mutant | -9/Exiles Mutant | -8/Mines Mutant | -8/Materials Resources | -11 -10 -10 -9 -9 -9 -8 -8 ----------- Run | Yrd Mat Min Mat Min Exi Min Mat Matter Collected 849 | 260 75 . 60 101 50 123 180 Remotely . | . . . . . . . . Salvage Created 876 | 105 228 . 142 167 . 112 122 Parts 70 | 3 18 . 10 11 . 16 12 Haulers Intercepted . | . . . . . . . . Recyclers Shooed 2 | 1 1 . . . . . . Parts Field Recycled . | . . . . . . . . Retrieved Matter . | . . . . . . . . Parts Self-Destructed . | . . . . . . . . Prevented . | . . . . . . . . Kills | -11 -10 -10 -9 -9 -9 -8 -8 ------- Run | Yrd Mat Min Mat Min Exi Min Mat Combat Hostiles Destroyed 23 | . 3 . 1 . . 12 7 Guns 2 | . 1 . 1 . . . . AOE 21 | . 2 . . . . 12 7 Classes Destroyed 10 | 2 4 . 1 . . 3 . Worker 5 | . 3 . 1 1 . . . Builder 6 | . 2 . . 1 . 1 2 Tunneler 3 | 1 1 . 1 . . . . Recycler 4 | 1 1 . . 2 . . . Watcher 4 | . 3 . 1 . . . . Swarmer 12 | . . . . . . 8 4 Grunt 6 | . 3 . . . . 2 1 Brawler 1 | . . . . . . 1 . Sentry 3 | . . . 1 . . . 2 Hunter 1 | . . . . . . 1 . Best Kill Streak 8 | 2 8 . 1 4 . 5 5 Combat Bots Only 5 | . 2 . 1 . . 4 5 Max Kills in Single Turn 4 | 1 3 . 1 2 . 4 1 Gunslinging . | . . . . . . . . Exploded 4 | . 1 . . . . 4 1 Melee . | . . . . . . . . Uniques/NPCs Destroyed . | . . . . . . . . Combat | -11 -10 -10 -9 -9 -9 -8 -8 -------- Run | Yrd Mat Min Mat Min Exi Min Mat Hostile Shots Fired 224 | . 9 36 34 . . 28 117 Missed 63 | . 3 11 9 . . 8 32 Damage Taken 3368 | . 302 433 281 48 . 333 1971 Core 923 | . 22 189 139 14 . . 559 Absorbed by Shields 48 | . . . 48 . . . . Core Remaining (%) 58 | 100 . 15 . . . 61 . Volleys Fired 75 | 4 12 6 14 3 . 8 28 Largest 2 | 2 2 1 1 2 . 2 2 Hottest 101 | 90 90 30 45 101 . 101 58 Shots Fired 114 | 8 24 6 14 6 . 11 45 Gun 69 | 8 19 . 14 . . . 28 Cannon 5 | . . . . 3 . 2 . Launcher 40 | . 5 6 . 3 . 9 17 Special . | . . . . . . . . Kinetic 37 | . 9 . . . . . 28 Thermal 23 | 8 10 . . 3 . 2 . Explosive 40 | . 5 6 . 3 . 9 17 Electromagnetic 14 | . . . 14 . . . . Robot Hit Streak 7 | 2 7 3 3 4 . 5 4 Robot Miss Streak 4 | 1 3 1 4 . . 2 4 Penetration Max . | . . . . . . . . Secondary Targets . | . . . . . . . . Shots Hit Robots 59 | 4 12 5 13 3 . 3 19 Core Hits 73 | 3 21 4 7 4 . 17 17 Critical Kills . | . . . . . . . . Critical Parts Destroyed . | . . . . . . . . Critical Strikes 1 | . 1 . . . . . . Burn 1 | . 1 . . . . . . Melee Attacks 2 | . . . 2 . . . . Impact . | . . . . . . . . Slashing . | . . . . . . . . Piercing . | . . . . . . . . Sneak Attacks . | . . . . . . . . Combat Hostiles . | . . . . . . . . Follow-up Attacks . | . . . . . . . . Damage Inflicted 3017 | 56 876 125 176 92 . 888 804 Guns 473 | 56 110 . 176 . . . 131 Cannons 62 | . . . . 62 . . . Explosions 2482 | . 766 125 . 30 . 888 673 Melee . | . . . . . . . . Ramming . | . . . . . . . . Kinetic 169 | . 38 . . . . . 131 Thermal 350 | 56 232 . . 62 . . . Explosive 2235 | . 519 125 . 30 . 888 673 Electromagnetic 263 | . 87 . 176 . . . . Impact . | . . . . . . . . Slashing . | . . . . . . . . Piercing . | . . . . . . . . Highest Corruption 12 | . . . . . . . 12 Average Corruption 12 | . . . . . . . 12 Corruption Purged . | . . . . . . . . Corruption Blocked . | . . . . . . . . Effects 2 | . . . . . . . 2 Matter Fused 1 | . . . . . . . 1 Energy Discharges 1 | . . . . . . . 1 Overload Shots . | . . . . . . . . Overflow Damage 265 | . 126 16 . . . 62 61 Projectiles . | . . . . . . . . Explosions 265 | . 126 16 . . . 62 61 Melee . | . . . . . . . . Knockbacks . | . . . . . . . . Impact . | . . . . . . . . Kinetic . | . . . . . . . . Secondary . | . . . . . . . . Self-Inflicted Damage 687 | . 237 55 42 48 . 139 166 Shots 20 | . 6 4 1 2 . 3 4 Rammed 1 | . . . . . . . 1 Targets Rammed 1 | . . . . . . . 1 Kicked . | . . . . . . . . Crushed . | . . . . . . . . Highest Temperature 60 | 60 60 26 45 15 . 60 19 Average Temperature 22 | 30 28 11 30 10 . 27 6 Received Heat Transfer 778 | . 36 153 139 . . 27 423 Siege Activations . | . . . . . . . . Robots Corrupted . | . . . . . . . . Combat Hostiles . | . . . . . . . . Parts Fried 2 | . . . 2 . . . . Impact Corruptions . | . . . . . . . . Robots Melted . | . . . . . . . . Combat Hostiles . | . . . . . . . . Parts Melted 1 | . 1 . . . . . . Heat Transferred 620 | 149 360 . . 111 . . . Parts Sabotaged . | . . . . . . . . Parts Stolen . | . . . . . . . . Parts Stripped . | . . . . . . . . Power Chain Reactions 1 | . 1 . . . . . . Alert | -11 -10 -10 -9 -9 -9 -8 -8 ------- Run | Yrd Mat Min Mat Min Exi Min Mat Peak Influence 326 | 10 273 140 179 39 . 228 326 Initial 106 | . 6 106 40 . . . 58 Average 99 | 1 28 109 114 17 . 165 212 Maximum Alert Level 1 | . 1 . . . . 1 1 Low Security (%) 81 | 100 96 100 100 100 . 52 46 Level 1 18 | . 3 . . . . 47 53 Level 2 . | . . . . . . . . Level 3 . | . . . . . . . . Level 4 . | . . . . . . . . Level 5 . | . . . . . . . . High Security . | . . . . . . . . Max Security . | . . . . . . . . Squads Dispatched 6 | . 1 . 2 . . . 3 Investigation 2 | . . . 1 . . . 1 Extermination . | . . . . . . . . Reinforcement 4 | . 1 . 1 . . . 2 Assault . | . . . . . . . . Garrison . | . . . . . . . . Intercept . | . . . . . . . . Searches Triggered . | . . . . . . . . Construction Impeded . | . . . . . . . . Haulers Reinforced . | . . . . . . . . Active Scanning Responses . | . . . . . . . . Cargo Convoy Interrupts . | . . . . . . . . Stealth | -11 -10 -10 -9 -9 -9 -8 -8 --------- Run | Yrd Mat Min Mat Min Exi Min Mat Distress Signals 3 | . 1 1 . . . . 1 Communications Jammed . | . . . . . . . . Distress Signals . | . . . . . . . . Times Spotted 42 | . 7 4 7 . . 12 12 Peak Tracking Total 5 | . 3 2 5 . . 4 5 Tactical Retreats 4 | . . . . . . . 4 Traps | -11 -10 -10 -9 -9 -9 -8 -8 ------- Run | Yrd Mat Min Mat Min Exi Min Mat Traps Triggered 1 | . . . . . . . 1 Indirectly . | . . . . . . . . Trap Hack Attempts . | . . . . . . . . Triggered . | . . . . . . . . Disarmed . | . . . . . . . . Reprogrammed . | . . . . . . . . Reused . | . . . . . . . . Traps Extracted . | . . . . . . . . Installed . | . . . . . . . . Triggered . | . . . . . . . . Machines | -11 -10 -10 -9 -9 -9 -8 -8 ---------- Run | Yrd Mat Min Mat Min Exi Min Mat Machines Disabled 17 | . 10 2 1 . . 1 3 Max in Single Turn 3 | . 3 2 1 . . 1 2 Machines Repaired . | . . . . . . . . Machines Dismantled . | . . . . . . . . Machines Sabotaged . | . . . . . . . . Overloaded Fab Kills . | . . . . . . . . Hacking | -11 -10 -10 -9 -9 -9 -8 -8 --------- Run | Yrd Mat Min Mat Min Exi Min Mat Machines Accessed 6 | . 1 . 2 1 1 . 1 Terminals 3 | . . . 2 . . . 1 Fabricators . | . . . . . . . . Repair Stations . | . . . . . . . . Recycling Units 1 | . 1 . . . . . . Scanalyzers . | . . . . . . . . Garrison Access . | . . . . . . . . Total Hacks 12 | . 3 . 4 1 1 . 3 Successful 9 | . 3 . 2 1 1 . 2 Failed 3 | . . . 2 . . . 1 Catastrophic 1 | . . . . . . . 1 Database Lockouts . | . . . . . . . . Manual 4 | . 1 . 1 . 1 . 1 Terminals 7 | . . . 4 . . . 3 Fabricators . | . . . . . . . . Repair Stations . | . . . . . . . . Recycling Units 3 | . 3 . . . . . . Scanalyzers . | . . . . . . . . Garrison Access . | . . . . . . . . Terminal Hacks 6 | . . . 2 1 1 . 2 Record 2 | . . . . . 1 . 1 Prototype ID Bank 1 | . . . 1 . . . . Open Door 1 | . . . . 1 . . . Recall Investigation 1 | . . . . . . . 1 Registered Prototypes 1 | . . . 1 . . . . Fabricator Hacks . | . . . . . . . . Repair Station Hacks . | . . . . . . . . Recycling Unit Hacks 3 | . 3 . . . . . . Recycle Component 1 | . 1 . . . . . . Report Inventory 1 | . 1 . . . . . . Retrieve Components 1 | . 1 . . . . . . Scanalyzer . | . . . . . . . . Garrison Access Hacks . | . . . . . . . . Unauthorized Hacks . | . . . . . . . . Terminals . | . . . . . . . . Fabricators . | . . . . . . . . Repair Stations . | . . . . . . . . Recycling Units . | . . . . . . . . Scanalyzers . | . . . . . . . . Garrison Access . | . . . . . . . . Data Cores Recovered . | . . . . . . . . Used . | . . . . . . . . Hacking Detections 3 | . 1 . 2 . . . . Full Trace Events 2 | . 1 . 1 . . . . Feedback Events . | . . . . . . . . Feedback Blocked . | . . . . . . . . Robot Schematics Acquired . | . . . . . . . . Robots Built . | . . . . . . . . Authchips . | . . . . . . . . Time . | . . . . . . . . Total Robot Build Rating . | . . . . . . . . Part Schematics Acquired . | . . . . . . . . Parts Built . | . . . . . . . . Authchips . | . . . . . . . . Time . | . . . . . . . . Total Part Build Rating . | . . . . . . . . Parts Repaired . | . . . . . . . . Time . | . . . . . . . . Parts Recycled 1 | . 1 . . . . . . Recycled Matter . | . . . . . . . . Retrieved Matter . | . . . . . . . . Retrieved Components 1 | . 1 . . . . . . Parts Scanalyzed . | . . . . . . . . Part Schematics Acquired . | . . . . . . . . Parts Damaged . | . . . . . . . . Bothacking | -11 -10 -10 -9 -9 -9 -8 -8 ------------ Run | Yrd Mat Min Mat Min Exi Min Mat Used RIF Installer . | . . . . . . . . Robots Hacked 1 | . . . 1 . . . . Non-combat . | . . . . . . . . Combat 1 | . . . 1 . . . . Robot Hacks Applied 1 | . . . 1 . . . . parse_system 1 | . . . 1 . . . . Relay Couplers Released . | . . . . . . . . Fabnet Peak Effective % . | . . . . . . . . Robots Rewired . | . . . . . . . . Allies Hacked . | . . . . . . . . Hacks Repelled . | . . . . . . . . Allies | -11 -10 -10 -9 -9 -9 -8 -8 -------- Run | Yrd Mat Min Mat Min Exi Min Mat Total Allies 3 | . . . . 2 . . 1 Largest Group 2 | . . . . 2 2 . 1 Highest-Rated Group 45 | . . . . 45 45 . 8 Highest-Rated Ally 31 | . . . . 31 31 . 8 Total Orders 3 | . . . . . 1 . 2 EXPLORE 1 | . . . . . . . 1 RETURN 2 | . . . . . 1 . 1 Ally Attacks 5 | . . . . . . . 5 Total Damage 40 | . . . . . . . 40 Kills 1 | . . . . . . . 1 Allies Corrupted . | . . . . . . . . Allies Melted . | . . . . . . . . Intel | -11 -10 -10 -9 -9 -9 -8 -8 ------- Run | Yrd Mat Min Mat Min Exi Min Mat Robot Analysis Total . | . . . . . . . . Derelict Logs Recovered 3 | . . 1 . 2 . . . Drone Launches 12 | . . . . . 6 . 6 Drone Recoveries 11 | . . . . . 6 . 5 Exploration | -11 -10 -10 -9 -9 -9 -8 -8 ------------- Run | Yrd Mat Min Mat Min Exi Min Mat Turns Passed 4816 | 256 582 164 412 414 1976 474 538 Spaces Moved 2904 | 153 333 125 396 305 1125 214 253 Core 430 | 10 . 47 178 105 . . 90 Treads 2249 | 143 333 78 . 200 1125 214 156 Legs . | . . . . . . . . Wheels . | . . . . . . . . Hover . | . . . . . . . . Flight 225 | . . . 218 . . . 7 Fastest Speed 35 | 50 160 50 35 50 160 152 50 Average Speed 155 | 152 160 121 92 128 175 204 173 Slowest Speed 360 | 160 160 350 115 240 240 240 360 Overloaded Moves . | . . . . . . . . Propulsion Burnouts . | . . . . . . . . Robots Hopped . | . . . . . . . . Cave-ins Triggered 2 | . . . . . . . 2 Exploration Rate (%) 35 | 7 42 35 20 46 72 45 17 Regions Visited 7 Branch Regions 4 Pre-discovered Areas 1 | . . . . 1 . . . Known Exits Taken . | . . . . . . . . Unknown Exits Taken 7 | 1 1 1 1 1 1 1 . Scrap Searched 3 | . . . . 2 . 1 . Spaces Dug . | . . . . . . . . Terrain Destroyed 303 | . 31 25 . 23 . 88 136 Melee . | . . . . . . . . Projectile 1 | . . . . . . 1 . AOE 302 | . 31 25 . 23 . 87 136 Terrain Rammed . | . . . . . . . . Walls Destroyed . | . . . . . . . . Machines Disabled . | . . . . . . . . Actions | -11 -10 -10 -9 -9 -9 -8 -8 --------- Run | Yrd Mat Min Mat Min Exi Min Mat Total 3083 | 166 361 132 427 321 1128 240 308 Wait 1 | . . . . . 1 . . Move 2896 | 152 332 124 395 304 1124 213 252 Hop . | . . . . . . . . Pick Up 42 | 4 6 . 6 6 1 9 10 Fast Attach 3 | 2 1 . . . . . . Attach 41 | 4 4 . 5 7 1 5 15 Detach 8 | . 4 1 1 1 . 1 . Swap 2 | . . . . . . 1 1 Drop 10 | . 2 1 4 . . 3 . Fire 75 | 4 12 6 14 3 . 8 28 Melee 2 | . . . 2 . . . . Ram . | . . . . . . . . Kick . | . . . . . . . . Crush 1 | . . . . . . . 1 Escape Stasis 1 | . . . . . . . 1 Rewire 1 | . . . . . 1 . . Trap . | . . . . . . . . Miscellaneous . | . . . . . . . . Route ------- -11/Scrapyard -10/Materials -10/Mines -9/Materials -9/Mines -9/Exiles (discovered 2 exits: [*Min x2]) -8/Mines (discovered 2 exits: *Mat x2) -8/Materials History --------- Turn | Location | Event 6 | -11/Scrapyard | Discovered new exit (range 14) 257 | -11/Scrapyard | Entered Materials 317 | -10/Materials | Build established: Mutant 681 | -10/Materials | Discovered new exit (range 16) 839 | -10/Materials | Entered Mines 892 | -10/Mines | Found a hidden stash of uninstalled traps 893 | -10/Mines | Assembled infested the area 898 | -10/Mines | Assisted by a Guerilla fighting off Assembled 971 | -10/Mines | Core integrity fell below 50% 983 | -10/Mines | Core integrity fell below 20% 984 | -10/Mines | Learned Materials terminal intel 994 | -10/Mines | Discovered new exit (range 15) 1003 | -10/Mines | Entered Materials 1003 | -9/Materials | Evolved 2 slots: Utility x2 1004 | -9/Materials | Loaded intel: 12 terminal locations 1010 | -9/Materials | Lost 4 parts (2n1u1w) 1115 | -9/Materials | Discovered new exit (range 12) 1415 | -9/Materials | Entered Mines 1421 | -9/Mines | Met a Derelict bent on vengeance 1440 | -9/Mines | Lost 4 parts (1p1n1u1w) 1441 | -9/Mines | Learned location of Zion (-6) 1557 | -9/Mines | Found the Drone Emporium 1582 | -9/Mines | Found Prototype Device 1591 | -9/Mines | Identified Splice Drone Bay 1746 | -9/Mines | Learned Materials emergency access door positions 1818 | -9/Mines | Deemed a non-threat by the Exiles lab entrance 1819 | -9/Mines | Discovered new exit (range 5) 1829 | -9/Mines | Entered Exiles 1829 | -9/Exiles | Accompanied by 2 allies 1859 | -9/Exiles | Led the pair of lost Derelicts to a safe place 1871 | -9/Exiles | Discovered new exit (range 17) 1893 | -9/Exiles | Met 8R-AWN 1896 | -9/Exiles | Build established: Derelict-Mutant 1922 | -9/Exiles | Met EX-HEX 2039 | -9/Exiles | Met EX-BIN 2130 | -9/Exiles | Aligned with FarCom system 2132 | -9/Exiles | Given EX-Vault access code 2337 | -9/Exiles | Met EX-DEC 2433 | -9/Exiles | Discovered new exit (range 15) 3269 | -9/Exiles | Opened EX-Vault 3283 | -9/Exiles | Found Prototype Device 3284 | -9/Exiles | Identified Cloak of Protection 3425 | -9/Exiles | Warned to stay clear of 0b10 Research branches 3805 | -9/Exiles | Left Exiles lab with Cloak of Protection 3805 | -9/Exiles | Entered Mines 3808 | -8/Mines | Discovered new exit (range 15) 4200 | -8/Mines | Discovered new exit (range 7) 4268 | -8/Mines | Build established: Mutant 4279 | -8/Mines | Entered Materials 4279 | -8/Materials | Evolved 2 slots: Power x1, Utility x1 4443 | -8/Materials | Lost 4 parts (2p1n1u) 4477 | -8/Materials | Lost 4 parts (1n1u2w) 4583 | -8/Materials | Released all parts (3) 4588 | -8/Materials | Crushed by falling debris 4794 | -8/Materials | Core integrity fell below 50% 4798 | -8/Materials | Crushed by falling debris 4798 | -8/Materials | System corruption reached 10% 4814 | -8/Materials | Core integrity fell below 20% 4817 | -8/Materials | Destroyed by X-62 Marksman with Gauss Rifle Last Messages --------------- 04799_ System corrupted: Matter fused (-9). 04799_ K-01 Serf collects debris. 04802_ U-05 Engineer builds a Wall. 04802_ K-01 Serf collects debris. 04808_ Penetrated by Slug. 04808_ Lgt. Treads destroyed. 04809_ Deuterium Engine destroyed. 04809_ K-01 Serf collects debris. 04810_ Backup Plating I tumbles out of repair station. 04810_ Penetrated by Slug. 04811_ Deuterium Engine destroyed. 04813_ Penetrated by Slug. 04813_ K-01 Serf collects debris. 04814_ Penetrated by Slug. 04814_ Acquired 24 matter. 04814_ Acquired 52 matter. 04815_ System corrupted: Energy discharge (-30). 04816_ U-05 Engineer lays Concrete. 04816_ U-05 Engineer builds a Wall. Map ----- +----------------------------------------------------+ | ???????????????###### # ##????????????????? | | ??????????????###+# #####???????????????? | | ??????????????### #####???????????????? | | ???????????##### # # # ???????????????? | | ?????????####### # #### ???????????????? | | ?????????####"" ## # ???????????????? | | ?????????## " # # ???????????????? | | ?????????## ! ## # ???????????????? | | ?????????## ## # """ """???????? | | ?????????## # ## ##########???????? | | ?????????## ## ##???????? | | ?????????## k # ## ##???????? | | ?????????## # ## * ! ##???????? | | ?????????## ## ### ##???????? | | ?????????###+##; # # # ##???????? | | ?????????### gg #u# ""T"" ##???????? | | ??########## # ### """" ##???????? | | ??##########+#### ## # #% ##???????? | | ??## # # ##;#####+#####???????? | | ??##"" """ # xx% ??????? | | ??##"T """ # % #??????? | | ??##"" """ #"" %"" """ #??????? | | ??## #"R ! %"" """ ?????????? | | ??############### * """ """ ????????? | | ??####### """ ## ! ????????? | | ?????????????? # @ ???????? | | ?????????????? # ????????? | | ?????????????? # ! ????????? | | ?????????????? # ####+##### ????????? | | ?????????????? # ## # ??w??????? | | ??????????????## H # ?? ?? ???????????? | | ?????????????? ! ?? ? +?????????????? | | ??????????? ?? ""??""" #?????????????? | | ???????????##### ? """?""" #?????????????? | | ???????????#########? """ ????#?????????????? | | ??????????????######?? ???????????????????? | | ????????????????????? ????????????????????? | | ?????????????????????###????????????????????? | | | | | | | | | | | | | | | | | | | | | | | | | +----------------------------------------------------+ Best States ------------- Heat Dissipation 31 Energy Generation 23 Energy Capacity 450 Matter Stores 300 Matter Capacity 300 Sight Range 18 Terrain Scan Range 14 Terrain Scan Density 10 Cloak Strength 5 Evasion (%) 63 Recoil Reduction 2 Item Schematics ----------------- None Robot Schematics ------------------ None Fabricated ------------ Nothing Alien Tech Used ----------------- None Achievements -------------- GoHome() Oops Release The Drones! Risk Taker System Compromised Tourist Challenges ------------ None Game ------ Seed 1 Manual? 1 Play Time 00:54:51 Cumulative 2.1 hours Start 2024.04.02 @ 20:21:29 End 2024.04.02 @ 21:32:06 Sessions 1 Manual Loads 0 Difficulty Rogue Special Mode None Game No. 5 Rogue 3 Adventurer 2 Explorer 0 Win Type - Total 0 Types 0/0/0/0/0/0/0/0/0 Lore% 1 Gallery% 6 Achievement% 6 Wizard Run 0 Options --------- Layout 1 ASCII 0 Keyboard 0 Movement Arrows Keybinds 0 Fullscreen 1 Font 24/X11 Map View 50x35 Zoom Use 0% Tactical HUD 1 Map Filters NONE Filters NONE Steam 1 RUN: cbf348dd-fdf6-4d85-8772-b2993c44fd10